[Event "5th Sharjah Masters 2022"]
[Site "Sharjah"]
[Date "2022.05.23"]
[Round "3.28"]
[White "Mchedlishvili, Mikheil"]
[Black "Aziz, Husain"]
[Result "0-1"]
[ECO "C66"]
[WhiteElo "2595"]
[BlackElo "2379"]
[Annotator "TA"]
[PlyCount "98"]
[EventDate "2022.05.21"]
[EventType "swiss"]
[EventCountry "UAE"]
[SourceTitle "playchess.com"]
[Source "ChessBase"]
[SourceQuality "1"]
[TimeControl "5400+30"]

{[%evp 9,98,26,34,32,56,47,50,50,50,39,46,39,45,36,66,54,64,57,66,60,73,48,56,37,79,46,55,43,47,31,48,44,32,29,22,26,51,21,32,1,106,22,49,60,81,0,0,20,20,0,0,0,0,0,0,0,0,0,0,0,7,0,46,0,31,0,8,0,19,0,0,-37,62,55,99,81,88,55,96,-282,-264,-672,-632,-631,0,-619,-619,-605,-585,-535,-523]} 1. e4 {[%emt 0:00:07]} e5 {[%emt 0:00:27]} 2. Nf3 {[%emt 0:00:27]} Nc6 {[%emt 0:00:11]} 3. Bb5 {[%emt 0:00:41]} Nf6 {[%emt 0:00:38]} 4. d3 {[%emt 0:00:54][%cal Bd2d3,Bd3d4,Bd4d5][%mdl 32]} d6 {[%emt 0:01:04]} 5. O-O {[%emt 0:01:10]} Bd7 {[%emt 0:00:08]} 6. Re1 {[%emt 0:02:06] C66: Ruy Lopez: Steinitz Defence.} g6 {[%emt 0:01:19]} 7. d4 {[%emt 0:02:24]} Bg7 {[%emt 0:03:02]} 8. d5 {[%emt 0:04:06] White is slightly better.} Nb8 {[%emt 0:01:02]} 9. Bxd7+ {[%emt 0:05:23]} Nbxd7 {[%emt 0:00:39]} 10. c4 {[%emt 0:00:38]} O-O {[%emt 0:00:22]} 11. Nc3 {[%emt 0:00:33] [#]} Kh8 $146 {[%emt 0:03:13]} ({Predecessor:} 11... h5 12. Bg5 Qe8 13. b4 Nh7 14. Bd2 a6 15. Rb1 Qd8 16. g3 f5 17. exf5 gxf5 {1-0 (42) Karjakin,S (2757)-Sakaev,K (2594) Jurmala 2015}) 12. Bg5 {[%emt 0:06:35]} a6 {[%emt 0:09:39]} 13. b4 {[%emt 0:04:59]} Qe8 {[%emt 0:00:16]} 14. Rc1 {[%emt 0:01:36]} h6 {[%emt 0:07:56]} 15. Bd2 {[%emt 0:02:42]} Ng8 {[%emt 0:05:46]} 16. c5 {[%emt 0:04:16]} Qd8 {[%emt 0:20:16]} 17. c6 {[%emt 0:05:04]} bxc6 {[%emt 0:00:12]} 18. dxc6 {[%emt 0:00:24]} Nb6 {[%emt 0:00:05]} 19. Be3 {[%emt 0:13:45] aiming for Bxb6.} Nc4 {[%emt 0:00:47]} 20. Nd5 {[%emt 0:06:11]} Nxe3 {[%emt 0:00:11]} 21. Rxe3 {[%emt 0:00:25]} Ne7 {[%emt 0:00:06]} 22. a4 {[%emt 0:01:33]} h5 {[%emt 0:06:33]} 23. Rc4 {[%emt 0:03:20]} Bh6 {[%emt 0:04:41]} 24. Re1 {[%emt 0:05:28]} (24. Rb3 $5 {[%cal Rd5f6]}) 24... Rb8 {[%emt 0:07:14]} (24... Nxd5 $11 25. Qxd5 (25. exd5 f5 $11) 25... g5) 25. Nc3 {[%emt 0:05:20]} (25. Nf6 $1 $16) 25... f5 {[%emt 0:01:24]} 26. b5 {[%emt 0:03:19]} axb5 {[%emt 0:06:43]} 27. Nxb5 {[%emt 0:03:32]} ({White should play} 27. axb5 $16 fxe4 28. Rcxe4) 27... Qc8 {[%emt 0:05:00]} 28. exf5 {[%emt 0:07:34]} Nxf5 {[%emt 0:01:56]} 29. Qc2 {[%emt 0:02:24]} Rf7 {[%emt 0:01:04]} 30. Nh4 {[%emt 0:00:43]} Nxh4 {[%emt 0:02:34]} 31. Rxh4 {[%emt 0:00:03]} Qe6 {[%emt 0:00:38]} 32. Rhe4 {[%emt 0:00:41]} Bg7 {[%emt 0:01:55]} 33. R4e2 {[%emt 0:01:25]} d5 {[%emt 0:02:14]} 34. Qc5 {[%emt 0:00:57]} e4 {[%emt 0:02:56]} 35. Rd1 {[%emt 0:01:14]} Rd8 {[%emt 0:05:13]} (35... Ra8 $11) 36. Red2 {[%emt 0:00:52]} (36. Nd4 $1 $14 {might be stronger.} Qe5 37. a5) 36... Rf6 {[%emt 0:00:26]} 37. Rc2 {[%emt 0:03:40]} Qf7 {[%emt 0:00:38]} 38. a5 {[%emt 0:00:53]} Ra8 {[%emt 0:00:27]} 39. Nc3 {[%emt 0:00:47]} (39. Rxd5 e3 40. f3 (40. Rd7 $2 Qb3 $19) 40... Rxa5 41. Rd8+ Kh7 42. Qxe3 Rxb5 $17) 39... d4 {[%emt 0:00:34]} 40. Rxd4 {[%emt 0:01:39] And now Rd7 would win.} Rf5 {[%emt 0:00:13]} ({Better is} 40... e3 $15 41. f3 Rf5) 41. Rd5 $14 {[%emt 0:00:06]} Rxd5 {[%emt 0:00:45]} 42. Nxd5 {[%emt 0:00:28]} ({Not} 42. Qxd5 Qxd5 43. Nxd5 Rxa5 $15) 42... Rb8 {[%emt 0:00:29]} 43. Rc1 {[%emt 0:00:49]} Rb2 $1 {[%emt 0:00:14][%cal Oe4e3] Hoping for ...e3!} 44. Rd1 $2 {[%emt 0:00:46][%mdl 8192]} (44. a6 $16 {and life is bright.}) 44... e3 $1 $19 {[%emt 0:00:39]} 45. Rf1 {[%emt 0:00:26]} ({But not} 45. Nxe3 Qxf2+ 46. Kh1 Re2 $19) (45. f3 e2 46. Re1) 45... Rxf2 {[%emt 0:00:20][%csl Gf7][%cal Rf2f1]} 46. Nxe3 {[%emt 0:00:05]} Rxf1+ {[%emt 0:00:41]} 47. Nxf1 {[%emt 0:00:02] [#]} Qf4 {[%emt 0:00:10] Against Nd2. Threatens to win with ...Bd4+. Black is clearly winning.} 48. Qb5 {[%emt 0:00:55]} Bd4+ {[%emt 0:00:17]} 49. Kh1 {[%emt 0:00:04] [#]} Qf2 $1 {[%emt 0:00:27] Against Qe2.  Weighted Error Value: White=0.42/Black=0.17 (very precise)} 0-1

[Event "5th Sharjah Masters 2022"]
[Site "Sharjah"]
[Date "2022.05.23"]
[Round "3.29"]
[White "Azarov, Sergei"]
[Black "Al Hosani, Omran"]
[Result "1-0"]
[ECO "B33"]
[WhiteElo "2588"]
[BlackElo "2191"]
[Annotator "TA"]
[PlyCount "85"]
[EventDate "2022.05.21"]
[EventType "swiss"]
[EventCountry "UAE"]
[SourceTitle "playchess.com"]
[Source "ChessBase"]
[SourceQuality "1"]
[TimeControl "5400+30"]

{[%evp 19,85,0,1,0,0,-3,14,14,15,14,22,18,23,19,15,0,10,0,0,-25,-39,-38,-36,-24,-2,-27,9,0,0,11,73,74,92,82,125,140,138,144,159,166,153,150,147,147,158,150,151,129,262,262,286,294,279,273,570,576,680,675,663,658,564,419,590,401,604,592,855,852]} 1. e4 {[%emt 0:00:03]} c5 {[%emt 0:00:46]} 2. Nf3 {[%emt 0:00:09]} Nc6 {[%emt 0:00:21]} 3. d4 {[%emt 0:00:11]} cxd4 {[%emt 0:00:46]} 4. Nxd4 {[%emt 0:00:08]} Nf6 {[%emt 0:00:13]} 5. Nc3 {[%emt 0:00:15]} e5 {[%emt 0:00:34]} 6. Ndb5 {[%emt 0:00:29]} d6 {[%emt 0:00:23]} 7. Nd5 {[%emt 0:00:41]} Nxd5 {[%emt 0:00:15]} 8. exd5 {[%emt 0:00:06]} Nb8 {[%emt 0:00:06][%cal Bc6b8,Bb8d7,Bd7b6][%mdl 32]} 9. a4 {[%emt 0:01:16]} Be7 {[%emt 0:01:07]} 10. Be2 {[%emt 0:00:22]} O-O {[%emt 0:00:40]} 11. O-O {[%emt 0:00:52] B33: Sicilian: Pelikan and Sveshnikov Variations.} Nd7 {[%emt 0:01:56]} 12. Bd2 {[%emt 0:03:06] The modern move.} a6 {[%emt 0:04:18]} 13. Na3 {[%emt 0:00:42] The position is equal.} a5 {[%emt 0:00:28]} 14. f4 {[%emt 0:07:39]} Nb6 {[%emt 0:00:37]} 15. c4 {[%emt 0:04:10]} Bf6 {[%emt 0:01:02]} 16. Ra2 {[%emt 0:16:26] [#]} (16. Bd3 {is more complex.} exf4 17. Bxf4 Bxb2 18. Bxh7+ Kxh7 19. Qc2+) 16... Nd7 $146 {[%emt 0:03:10]} ({Predecessor:} 16... Re8 17. b3 Nd7 18. Bg4 Nc5 19. Bxc8 Rxc8 20. Nb5 exf4 21. Bxf4 Be5 22. Raf2 Ne4 {½-½ (28) Firnhaber,I (2469)-Tinture,L (2457) ICCF email 2018}) 17. Nb5 {[%emt 0:10:59]} Nc5 {[%emt 0:05:40]} 18. Kh1 {[%emt 0:00:29]} Qe7 {[%emt 0:16:58]} 19. b4 {[%emt 0:10:51]} axb4 {[%emt 0:02:43]} 20. Bxb4 {[%emt 0:00:08]} b6 {[%emt 0:10:59]} 21. f5 {[%emt 0:06:52]} Bd7 {[%emt 0:01:09]} 22. a5 {[%emt 0:04:20]} Rfc8 {[%emt 0:05:19]} 23. a6 {[%emt 0:02:14]} e4 {[%emt 0:00:52]} 24. Qb1 {[%emt 0:05:10]} Bxb5 {[%emt 0:05:44]} (24... e3 $11) 25. cxb5 $16 {[%emt 0:00:07]} Qe5 {[%emt 0:00:04]} 26. Be1 {[%emt 0:07:53]} Qxd5 {[%emt 0:02:59]} 27. Rd2 {[%emt 0:00:46]} Qb3 {[%emt 0:01:28]} 28. Bg3 $1 {[%emt 0:04:59]} ({Reject} 28. Qxb3 $6 Nxb3 29. Rxd6 Nd4 $11) 28... d5 {[%emt 0:07:50]} 29. Qxb3 {[%emt 0:00:39][%mdl 64] Remove Defender} Nxb3 {[%emt 0:00:02]} 30. Rxd5 {[%emt 0:00:12]} Nd4 {[%emt 0:00:03]} 31. Bg4 {[%emt 0:00:33]} e3 {[%emt 0:04:39]} 32. h4 {[%emt 0:00:18]} Rc4 {[%emt 0:02:59]} 33. Kh2 {[%emt 0:03:08]} Rb4 {[%emt 0:04:32] Black cannot hold the game after this.} (33... h6 $16) 34. Rf4 $18 {[%emt 0:02:24]} Re8 {[%emt 0:02:45]} 35. a7 {[%emt 0:01:49]} Ra4 {[%emt 0:05:19] [#]} 36. Rd7 $1 {[%emt 0:01:59] Rb7 is the strong threat.} Ra8 $2 {[%emt 0:02:43]} (36... Ra1 {is a better defense.} 37. Bh5 (37. Rdxd4 Bxd4 38. Rxd4 Rxa7 $16) 37... Rf8) 37. Re4 {[%emt 0:00:45]} g6 {[%emt 0:02:09]} 38. fxg6 {[%emt 0:01:58]} hxg6 {[%emt 0:00:01] [#]} 39. Bb8 {[%emt 0:00:51]} Kg7 {[%emt 0:03:28]} 40. Bd1 {[%emt 0:00:44]} Rb4 {[%emt 0:01:06]} (40... Ra2 {was necessary.} 41. Rxe3 (41. Rdxd4 Bxd4 42. Rxd4 e2 $18) 41... Ra1) 41. Rxe3 {[%emt 0:00:41] Threatens to win with Re4.} Nf5 {[%emt 0:01:18]} (41... Nxb5 $142 42. Bf3 Rxh4+ 43. Kg3 Rd4 44. Rxd4 Bxd4) 42. Rh3 {[%emt 0:00:52]} Nxh4 {[%emt 0:00:23]} 43. Bb3 {[%emt 0:00:43] Weighted Error Value: White=0.13 (very precise) /Black=0.37} 1-0

[Event "5th Sharjah Masters 2022"]
[Site "Sharjah"]
[Date "2022.05.23"]
[Round "3.30"]
[White "Fedoseev, Vladimir"]
[Black "Davtyan, Artur"]
[Result "1-0"]
[ECO "C28"]
[WhiteElo "2701"]
[BlackElo "2488"]
[Annotator "TA"]
[PlyCount "127"]
[EventDate "2022.05.21"]
[EventType "swiss"]
[EventCountry "UAE"]
[SourceTitle "playchess.com"]
[Source "ChessBase"]
[SourceQuality "1"]
[TimeControl "5400+30"]

{[%evp 9,127,17,15,-22,0,0,0,-11,0,0,0,-4,-4,-25,9,0,14,14,15,16,40,22,37,40,43,34,43,45,56,41,43,29,28,38,35,0,17,12,20,0,0,-25,-13,-62,-31,-45,0,-4,0,0,0,-25,7,-35,33,29,40,0,0,0,31,32,44,47,84,86,97,119,189,67,219,94,265,256,258,250,250,241,229,243,938,218,805,239,553,520,433,209,789,793,736,777,753,901,905,865,872,729,729,701,1015,1013,1003,956,658,632,1516,1536,1587,1604,1499,1331,3822,3822,2561,2322,6524,6191,5933,1430]} 1. e4 {[%emt 0:00:01]} e5 {[%emt 0:00:12]} 2. Bc4 {[%emt 0:00:05]} Nc6 {[%emt 0:02:07]} 3. Nc3 {[%emt 0:01:01]} Nf6 {[%emt 0:00:12]} 4. d3 {[%emt 0:00:14]} Na5 {[%emt 0:00:44]} 5. Bb3 {[%emt 0:00:12]} Bc5 {[%emt 0:03:28] [#]} 6. Qe2 $146 {[%emt 0:02:00] C28: Vienna Game: 2...Nf6 3 Bc4 Nc6.} ({Predecessor:} 6. Nf3 d6 7. h3 h6 8. Ne2 Nxb3 9. axb3 c6 10. Ng3 Bb6 11. Qe2 O-O 12. Be3 Re8 13. Bxb6 Qxb6 {½-½ (71) Rapport,R (2763)-Nihal,S (2650) Chess.com INT 2021}) 6... d6 {[%emt 0:09:43]} 7. Na4 {[%emt 0:00:38]} Bb6 {[%emt 0:00:51]} 8. Bd2 {[%emt 0:03:07] The position is equal.} O-O {[%emt 0:11:14]} 9. Nf3 {[%emt 0:00:06]} Bd7 {[%emt 0:02:44]} 10. h3 {[%emt 0:00:43]} h6 {[%emt 0:10:24]} 11. g4 {[%emt 0:01:51]} Qe8 {[%emt 0:00:33]} 12. Nc3 {[%emt 0:00:07]} Nxb3 {[%emt 0:03:05]} 13. axb3 {[%emt 0:00:06]} a5 {[%emt 0:15:11]} 14. Rg1 {[%emt 0:00:51]} Nh7 {[%emt 0:05:56]} 15. Nd5 {[%emt 0:00:53]} Be6 {[%emt 0:00:32]} 16. Nxb6 {[%emt 0:00:42]} cxb6 {[%emt 0:00:05]} 17. d4 {[%emt 0:03:21]} a4 {[%emt 0:03:32]} 18. d5 {[%emt 0:03:47]} (18. dxe5 axb3 19. Rxa8 Qxa8 20. exd6 bxc2 $15) 18... Bd7 {[%emt 0:05:17]} 19. bxa4 {[%emt 0:00:11]} Bxa4 {[%emt 0:04:22]} 20. Rc1 {[%emt 0:02:57]} Qc8 {[%emt 0:11:17]} 21. Bb4 {[%emt 0:02:19]} Qc7 {[%emt 0:00:42]} 22. Nd2 {[%emt 0:01:46]} Rfc8 {[%emt 0:00:38]} 23. b3 {[%emt 0:03:23]} Be8 {[%emt 0:01:46]} 24. Qe3 {[%emt 0:04:00]} b5 {[%emt 0:00:44] Inhibits Nc4.} 25. h4 {[%emt 0:02:32]} Ra2 {[%emt 0:00:19]} 26. c3 {[%emt 0:02:23]} (26. f4 $11) 26... Nf8 {[%emt 0:00:23]} 27. h5 {[%emt 0:00:12] Against Ng6} f6 {[%emt 0:00:10] Inhibits g5.} 28. Kf1 {[%emt 0:01:24]} Nh7 {[%emt 0:02:41]} 29. Kg2 {[%emt 0:05:08]} Qd7 {[%emt 0:00:01]} 30. Kh2 {[%emt 0:02:42]} Qd8 {[%emt 0:02:52][%cal Of6f5]} 31. Nf3 {[%emt 0:00:23]} Ng5 {[%emt 0:00:35]} (31... Rb2 $15) 32. Nh4 $14 {[%emt 0:00:37]} Bd7 {[%emt 0:02:03]} 33. Rg2 {[%emt 0:00:27]} Rca8 {[%emt 0:00:48]} 34. f3 {[%emt 0:06:38]} Rxg2+ {[%emt 0:00:34]} (34... f5 $5 35. exf5 Be8 $16) 35. Kxg2 {[%emt 0:00:07]} Ra2+ {[%emt 0:00:06]} 36. Kg3 $1 {[%emt 0:00:07]} Qa8 {[%emt 0:02:01]} 37. Bxd6 {[%emt 0:01:18]} Rb2 {[%emt 0:00:03]} 38. Qg1 {[%emt 0:01:14]} Rxb3 {[%emt 0:00:41]} (38... Kh7 $16) 39. Bb4 {[%emt 0:01:08]} ({White has to play} 39. Ng6 $1 $18) 39... Qa2 {[%emt 0:00:39]} (39... Rb2 $14) 40. Qe1 {[%emt 0:00:58]} (40. Ra1 $1 $18 {[%cal Ra1a2] is the precise move to win.} Qe2 41. Qg2 Nxe4+ 42. Kh2 Qxg2+ 43. Kxg2 Rb2+ 44. Kg1 Rxb4 45. cxb4) 40... Kh7 $2 {[%emt 0:01:15]} (40... Rb2 $16 41. Ra1 Qc4) 41. Ra1 $1 $18 {[%emt 0:00:58]} Qc2 {[%emt 0:00:00] Threatens to win with ...Rb2.} 42. Qd1 $1 {[%emt 0:01:22]} Nxe4+ {[%emt 0:00:24]} 43. fxe4 {[%emt 0:00:11] Really sharp!} Qxe4 {[%emt 0:00:04] ...Qf4+ is the strong threat.} 44. Qf3 {[%emt 0:01:20] Against Qf4+} (44. Qxb3 $2 Qxg4+ 45. Kf2 Qxh4+ 46. Ke2 Qh2+ 47. Ke1 Qh1+ 48. Kd2 Qxa1 $19) 44... Qc4 {[%emt 0:01:01]} (44... Qc2 45. Rg1 (45. Ng6 Rb2 $11) 45... Rb1) 45. Re1 $2 {[%emt 0:01:55]} (45. Ra8 {Black must now prevent Ng6.} e4 46. Ng6 $1) 45... Kg8 $2 {[%emt 0:00:28]} (45... Rb2 46. Nf5 Rd2) 46. Qe4 $2 {[%emt 0:00:34]} (46. Ng6 {Hoping for Ra1.} Rb2 {[#]} 47. Rxe5 $1 {[%mdl 512]}) 46... Qc7 $2 {[%emt 0:00:30]} (46... Qxe4 {is a better chance.} 47. Rxe4 Rb2) 47. d6 {[%emt 0:00:31]} Qc6 {[%emt 0:00:31]} 48. Nf3 {[%emt 0:00:37]} (48. Qf3 $142) 48... Kf8 $2 {[%emt 0:00:25]} (48... Qxe4 49. Rxe4 Rb2) 49. Qxc6 {[%emt 0:00:22] White is clearly winning.} ({Not} 49. Nxe5 fxe5 50. Qxc6 (50. Qxe5 Rb2 $18) 50... bxc6 $16) 49... bxc6 {[%emt 0:00:05]} 50. Nd2 {[%emt 0:00:37][%cal Bf3d2,Bd2e4,Be4c5][%mdl 32]} Rb2 {[%emt 0:00:01]} 51. Ne4 {[%emt 0:00:01]} Ra2 {[%emt 0:00:09]} 52. Nc5 {[%emt 0:00:28]} Ke8 {[%emt 0:00:01]} 53. Rd1 {[%emt 0:01:16]} Kd8 {[%emt 0:00:23]} 54. Kf3 {[%emt 0:00:26]} Ke8 {[%emt 0:00:06]} 55. Nxd7 {[%emt 0:00:29]} Kxd7 {[%emt 0:00:01][%mdl 4096] Endgame KRB-KR} 56. Ke4 {[%emt 0:00:10]} Ra4 {[%emt 0:00:46]} 57. Kf5 {[%emt 0:00:12]} c5 {[%emt 0:00:01]} 58. Bxc5 {[%emt 0:00:09]} Rf4+ {[%emt 0:00:04]} 59. Kg6 {[%emt 0:00:05]} Rxg4+ {[%emt 0:00:02]} 60. Kf7 {[%emt 0:00:07]} f5 {[%emt 0:00:22]} 61. Rd5 {[%emt 0:01:31]} Re4 {[%emt 0:00:23]} 62. Kxg7 {[%emt 0:00:08] Strongly threatening Kf6.} f4 {[%emt 0:00:04]} 63. Kf6 {[%emt 0:00:52]} Kc6 {[%emt 0:00:23]} 64. d7 {[%emt 0:00:23] Weighted Error Value: White=0.40/Black=0.32} (64. Ke6 $142 Ra4 65. d7) 1-0

[Event "5th Sharjah Masters 2022"]
[Site "Sharjah"]
[Date "2022.05.23"]
[Round "3.31"]
[White "Assaubayeva, Bibisara"]
[Black "Nihal Sarin"]
[Result "1/2-1/2"]
[ECO "E16"]
[WhiteElo "2439"]
[BlackElo "2646"]
[Annotator "TA"]
[PlyCount "50"]
[EventDate "2022.05.21"]
[EventType "swiss"]
[EventCountry "UAE"]
[SourceTitle "playchess.com"]
[Source "ChessBase"]
[SourceQuality "1"]
[TimeControl "5400+30"]

{[%evp 18,50,34,11,12,10,12,0,34,14,16,6,20,17,13,12,23,20,35,25,35,8,23,0,22,0,44,14,20,19,20,26,33,37,62]} 1. d4 {[%emt 0:00:03]} Nf6 {[%emt 0:00:18]} 2. c4 {[%emt 0:00:07]} e6 {[%emt 0:00:03]} 3. Nf3 {[%emt 0:00:05]} b6 {[%emt 0:00:03]} 4. g3 {[%emt 0:00:51]} Bb7 {[%emt 0:00:04]} 5. Bg2 {[%emt 0:00:05]} Bb4+ {[%emt 0:00:04]} 6. Bd2 {[%emt 0:00:05]} c5 {[%emt 0:00:04]} 7. O-O {[%emt 0:07:18]} O-O {[%emt 0:00:54]} 8. Bxb4 {[%emt 0:04:00]} cxb4 {[%emt 0:00:28]} 9. a3 {[%emt 0:00:08]} bxa3 {[%emt 0:00:20]} 10. Rxa3 {[%emt 0:02:05]} a5 {[%emt 0:00:37] E16: Queen's Indian: 4 g3 Bb7 5 Bg2 Bb4+.} 11. Nc3 {[%emt 0:07:48]} Na6 {[%emt 0:04:04]} 12. Qd2 {[%emt 0:12:36] [#]} d6 $146 {[%emt 0:18:14] The position is equal.} ({Predecessor:} 12... Nb4 13. Nb5 d5 14. Ne5 Ba6 15. b3 Bxb5 16. cxb5 Qe8 17. Nd3 Qxb5 18. Nxb4 axb4 19. Rxa8 Rxa8 {0-1 (62) Costachi,M (2471)-Quparadze,G (2463) Chess.com INT 2021}) 13. Rc1 {[%emt 0:09:40]} Rc8 {[%emt 0:14:11]} 14. b3 {[%emt 0:08:03]} Qe7 {[%emt 0:03:31]} 15. Raa1 {[%emt 0:04:49]} Rfe8 {[%emt 0:00:30]} 16. Na4 {[%emt 0:00:30]} Qc7 {[%emt 0:00:30]} 17. Ne1 {[%emt 0:00:30][%cal Bf3e1,Be1g2,Bg2f4,Bf4d3][%mdl 32]} h6 {[%emt 0:00:30]} 18. Nc3 {[%emt 0:00:30] [#] Hoping for Nb5.} Bxg2 $1 {[%emt 0:16:53]} 19. Nxg2 {[%emt 0:16:10]} Qb7 {[%emt 0:00:30]} 20. Nf4 {[%emt 0:00:30]} Rcd8 {[%emt 0:00:30]} 21. Rd1 {[%emt 0:00:30]} Rd7 {[%emt 0:00:30]} 22. Rac1 {[%emt 0:00:30]} Nb4 {[%emt 0:00:30]} 23. Nd3 {[%emt 0:00:30]} Nc6 {[%emt 0:00:30]} 24. e3 {[%emt 0:00:30]} Ne7 {[%emt 0:00:30]} 25. Qe2 {[%emt 0:00:30]} Nc6 {[%emt 0:00:30] Weighted Error Value: White=0.09 (flawless) /Black=0.09 (flawless)} 1/2-1/2

[Event "5th Sharjah Masters 2022"]
[Site "Sharjah"]
[Date "2022.05.23"]
[Round "3.32"]
[White "Ivic, Velimir"]
[Black "Nikolov, Momchil"]
[Result "1/2-1/2"]
[ECO "D41"]
[WhiteElo "2623"]
[BlackElo "2454"]
[Annotator "TA"]
[PlyCount "59"]
[EventDate "2022.05.21"]
[EventType "swiss"]
[EventCountry "UAE"]
[SourceTitle "playchess.com"]
[Source "ChessBase"]
[SourceQuality "1"]
[TimeControl "5400+30"]

{[%evp 21,59,4,28,27,27,9,4,0,0,0,0,-11,0,-26,-25,-41,-16,-11,-11,-53,0,-21,0,-11,-11,-26,-6,-29,0,-41,0,-8,0,0,0,0,0,0,0,0]} 1. d4 {[%emt 0:00:04]} Nf6 {[%emt 0:00:19]} 2. c4 {[%emt 0:00:07]} e6 {[%emt 0:00:20]} 3. Nc3 {[%emt 0:00:10]} d5 {[%emt 0:01:59]} 4. cxd5 {[%emt 0:00:53]} Nxd5 {[%emt 0:00:08]} 5. e4 {[%emt 0:00:44]} Nxc3 {[%emt 0:00:09]} 6. bxc3 {[%emt 0:00:05]} c5 {[%emt 0:00:13]} 7. Nf3 {[%emt 0:00:33]} cxd4 {[%emt 0:00:09]} 8. cxd4 {[%emt 0:00:03]} Bb4+ {[%emt 0:00:08]} 9. Bd2 {[%emt 0:00:04]} Bxd2+ {[%emt 0:00:09]} 10. Qxd2 {[%emt 0:00:04]} O-O {[%emt 0:00:10]} 11. Bc4 {[%emt 0:00:57]} Nd7 {[%emt 0:00:15]} 12. O-O {[%emt 0:01:08] D41: Queen's Gambit Declined: Semi-Tarrasch with 5 cxd5.} b6 {[%emt 0:00:10]} 13. d5 {[%emt 0:03:19]} Nf6 {[%emt 0:02:32]} 14. Rfe1 {[%emt 0:01:43]} exd5 {[%emt 0:02:44]} 15. exd5 {[%emt 0:00:11]} Qd6 {[%emt 0:01:33] [#]} 16. Qd4 $146 {[%emt 0:09:02]} ({Predecessor:} 16. Ne5 Bb7 17. Rad1 Rad8 18. Qg5 h6 19. Qf5 Qc5 20. Rc1 Bxd5 21. Bd3 Be6 22. Qf4 {0-1 (47) Heimann,A (2606)-Barp,A (2366) Tornelo INT 2020}) 16... Bb7 {[%emt 0:02:17]} 17. Nh4 {[%emt 0:17:38] [#] Strongly threatening Nf5.} g6 {[%emt 0:03:11][%cal Rb7d5] Prevents Nf5.} (17... Bxd5 $2 18. Nf5 Qb4 19. Ne7+ (19. Bxd5 Qxd4 20. Bxf7+ Rxf7 $11) 19... Kh8 20. Nxd5 $18) 18. Rad1 {[%emt 0:02:21]} Rae8 {[%emt 0:08:42]} 19. Nf3 {[%emt 0:04:22]} Rxe1+ {[%emt 0:02:09]} 20. Rxe1 {[%emt 0:01:12]} Re8 {[%emt 0:45:20]} ({Black should play} 20... Rc8 $15) 21. Rd1 {[%emt 0:06:33]} Ne4 {[%emt 0:03:27]} 22. Bb5 {[%emt 0:12:12]} Re7 {[%emt 0:00:56]} 23. h4 {[%emt 0:03:55]} a6 {[%emt 0:01:56]} 24. Bf1 {[%emt 0:04:09]} Qc5 {[%emt 0:04:13]} 25. Qb2 {[%emt 0:02:42]} h5 {[%emt 0:05:21]} ({Resist} 25... Bxd5 26. Rc1 Qxf2+ 27. Qxf2 Nxf2 28. Kxf2 $16) 26. a4 {[%emt 0:06:19] Inhibits b5. The position is equal.} b5 {[%emt 0:03:22]} 27. axb5 {[%emt 0:07:17]} axb5 {[%emt 0:00:02]} 28. Rc1 {[%emt 0:10:55]} Qxd5 {[%emt 0:00:40]} 29. Bxb5 {[%emt 0:00:44]} Qd6 {[%emt 0:03:11]} 30. Qd4 {[%emt 0:02:12] A balanced but interesting game.  Weighted Error Value: White=0.11 (very precise) /Black=0.13 (very precise)} 1/2-1/2